bitfinex-derivatives/quotes_ETHF0:USTF0_20260308
["timestamp","ask_amount","ask_price","bid_price","bid_amount"]
[1773000223969,0.34009857,1960.2,1959.6,0.56458096]
[1773000224168,6.674,1960.1,1959.6,0.56458096]
[1773000224666,6.99458751,1960.1,1959.6,0.56458096]
[1773000225267,0.32058751,1960.0,1959.6,0.56458096]
[1773000225471,0.32058751,1960.0,1959.0,0.56458096]
[1773000225867,0.32082063,1960.4,1959.0,0.56458096]
[1773000226068,0.32082063,1960.2,1959.0,0.56458096]
[1773000226268,6.674,1960.1,1959.0,0.56458096]
[1773000226772,6.99482063,1960.1,1959.0,0.56458096]
[1773000227971,0.31314029,1960.4,1959.0,0.56458096]
[1773000228175,0.0041066,1960.9,1959.0,0.56458096]
[1773000228176,6.98714029,1960.3,1959.2,0.56458096]
[1773000228370,6.98714029,1960.2,1959.2,0.56458096]
[1773000229172,0.31314029,1960.1,1959.2,0.56458096]
[1773000235577,0.31262954,1959.9,1959.2,0.56458096]
[1773000235776,0.31262954,1959.7,1959.2,0.56458096]
[1773000238282,0.31262954,1959.7,1958.9,0.56458096]
[1773000240880,6.675,1959.8,1958.9,0.56458096]
[1773000241384,6.96785429,1959.8,1958.9,0.56458096]
[1773000241584,0.29285429,1959.7,1958.9,0.56458096]
[1773000243985,6.96785429,1959.7,1958.9,0.56458096]
[1773000244187,0.29296931,1959.6,1958.9,0.56458096]
[1773000244984,0.29296931,1959.6,1958.8,0.60166167]
[1773000245176,0.29402422,1959.4,1958.8,0.60166167]
[1773000245380,0.29993582,1959.4,1958.8,0.60166167]
[1773000245580,0.29993582,1959.4,1958.8,0.00583183]
[1773000245891,0.0059116,1959.4,1958.8,0.59781385]
[1773000246085,0.30007547,1959.8,1958.8,0.59781385]
[1773000246287,6.97507547,1959.7,1958.8,0.59781385]
[1773000246889,0.30007547,1959.7,1958.8,0.59781385]
[1773000247089,0.30510103,1959.7,1958.8,0.59781385]
[1773000247292,0.30007547,1959.5,1958.8,0.59781385]
[1773000248189,0.298787,1959.4,1958.8,0.59781385]
[1773000248689,0.298787,1959.4,1958.8,0.00583183]
[1773000249085,0.298787,1959.2,1958.8,0.59781385]
[1773000249285,0.298787,1959.2,1958.8,0.00583183]
[1773000249890,0.298787,1959.2,1958.7,0.59198202]
[1773000250090,0.543537,1959.1,1958.7,0.59198202]
[1773000250285,0.543537,1959.1,1958.6,1.42588022]
[1773000250590,0.543537,1959.1,1958.7,0.59198202]
[1773000250991,0.543537,1959.1,1958.7,0.5981828]
[1773000253092,6.675,1959.1,1958.7,0.5981828]
[1773000253487,0.543537,1959.0,1958.7,0.00620078]
[1773000254287,0.543537,1959.0,1958.7,0.5981828]
[1773000254990,0.543537,1959.0,1958.7,0.00620078]
[1773000255383,7.218537,1959.0,1958.7,0.5981828]
[1773000255993,7.218537,1959.0,1958.7,0.00620078]
[1773000255994,0.543537,1958.9,1958.7,0.00620078]
[1773000256293,0.543537,1958.9,1958.6,0.8338982]
[1773000256991,0.543537,1958.9,1958.6,1.42588022]
[1773000257189,0.543537,1958.9,1958.6,1.43227858]
[1773000258789,0.543537,1959.5,1958.7,0.59198202]
[1773000258994,0.543537,1959.3,1958.7,0.59198202]
[1773000260495,0.543537,1959.1,1958.7,0.59198202]
[1773000261091,0.543537,1959.1,1958.6,0.84029656]
[1773000261092,0.543537,1959.1,1958.6,0.59198203]
[1773000261294,0.543537,1959.1,1958.7,0.59198202]
[1773000261496,7.219537,1959.1,1958.7,0.59198202]
[1773000261691,0.543537,1959.1,1958.7,0.59198202]
[1773000261891,7.219537,1959.1,1958.7,0.59198202]
[1773000262289,0.543537,1959.0,1958.6,1e-08]
[1773000262694,7.219537,1958.9,1958.6,1e-08]
[1773000262895,0.543537,1958.9,1958.6,1e-08]
[1773000263096,0.543537,1958.8,1958.3,0.59198202]
[1773000264102,0.543537,1958.8,1958.3,0.59559886]
[1773000269001,2.08359128,1958.6,1957.6,0.59198202]
[1773000269202,6.676,1958.6,1958.3,0.59198202]
[1773000270004,6.676,1958.6,1958.3,0.5959974]
[1773000270412,0.543537,1958.7,1958.3,0.5959974]
[1773000270413,6.676,1958.7,1958.4,0.59559886]
[1773000270806,0.04476065,1958.7,1958.4,0.59559886]
[1773000271010,6.72076065,1958.7,1958.4,0.59559886]
[1773000271711,0.04476065,1958.6,1958.4,0.00361684]
[1773000272406,0.04476065,1958.6,1958.3,0.00401538]
[1773000272607,0.04476065,1958.6,1958.3,0.00763222]
[1773000273014,0.0726734,1959.1,1958.6,0.59813917]
[1773000273713,0.0726734,1959.1,1958.8,0.59813917]
[1773000274015,6.676,1959.3,1958.9,0.60175601]
[1773000274315,0.07254086,1959.3,1958.9,0.60175601]
[1773000274905,0.07254086,1959.6,1958.9,0.60175601]
[1773000275108,0.07254086,1959.4,1959.0,0.59813917]
[1773000275415,0.07254086,1959.5,1959.0,0.59813917]
[1773000275611,0.07254086,1959.5,1959.1,0.60175601]
[1773000275809,0.07254086,1959.5,1959.1,0.59813917]
[1773000276015,6.74854086,1959.5,1959.1,0.59813917]
[1773000276214,0.07006252,1959.4,1959.1,0.59813917]
[1773000276810,6.74606252,1959.5,1959.1,0.60175601]
[1773000277415,0.07508808,1959.7,1959.1,0.60175601]
[1773000278214,0.00502556,1959.7,1959.1,0.59813917]
[1773000278920,0.00502556,1959.7,1959.3,0.59813917]
[1773000280220,0.00502556,1959.7,1959.5,0.59813917]
[1773000281523,6.75543916,1959.9,1959.5,0.60175601]
[1773000282022,0.08043916,1959.9,1959.5,0.60175601]
[1773000282523,6.675,1960.3,1959.5,0.60175601]
[1773000282818,0.08023115,1960.3,1959.5,0.60175601]
[1773000283022,6.675,1960.2,1959.5,0.60175601]
[1773000283219,0.08023115,1960.1,1959.5,0.60175601]
[1773000283423,0.08671944,1960.1,1959.5,0.60175601]
[1773000283818,0.00648829,1960.1,1959.5,0.60175601]
[1773000285820,0.08609608,1960.1,1959.5,0.60175601]
[1773000286018,0.08609608,1960.1,1959.0,0.59813917]
[1773000286321,0.28753378,1959.9,1959.0,0.39376809]
[1773000287025,0.28753378,1959.7,1959.0,0.39376809]
[1773000287319,6.675,1959.6,1959.0,0.39376809]
[1773000287523,6.96253378,1959.6,1959.0,0.39376809]
[1773000288528,0.29016613,1959.5,1959.0,0.39376809]
[1773000289631,0.29016613,1959.5,1958.5,0.59813917]
[1773000290232,6.96516613,1959.5,1958.5,0.59813917]
[1773000290822,0.29016613,1959.5,1958.5,0.59813917]
[1773000291035,6.96516613,1959.5,1958.5,0.59813917]
[1773000292234,0.28872622,1959.4,1958.5,0.59813917]
[1773000294833,0.29005566,1959.2,1958.3,0.00401538]
[1773000295133,0.29005566,1959.2,1958.3,0.60215455]
[1773000295327,0.29005566,1959.2,1958.3,0.00401538]
[1773000295535,0.29005566,1959.0,1958.3,0.00401538]
[1773000295731,0.29005566,1958.8,1958.3,0.00401538]
[1773000295932,0.29005566,1958.8,1958.1,0.59813917]
[1773000296935,6.96862431,1958.7,1958.1,0.60260428]
[1773000297237,6.97439204,1958.7,1958.1,0.60260428]
[1773000298635,0.29839204,1958.7,1958.1,0.60260428]
[1773000300233,0.00576773,1958.7,1958.1,0.60260428]
[1773000301936,6.677,1959.0,1958.1,0.60260428]
[1773000302138,0.25968572,1959.1,1958.1,0.60260428]
[1773000302535,6.94245345,1959.2,1958.1,0.60260428]
[1773000302840,0.26566229,1959.1,1958.1,0.60260428]
[1773000303038,0.2709096,1959.1,1958.1,0.60260428]
[1773000304235,0.00524731,1959.1,1958.1,0.60260428]
[1773000306642,0.27152641,1959.1,1958.1,0.60260428]
[1773000307238,0.00524731,1959.1,1958.1,0.60260428]
[1773000307543,6.9432791,1959.5,1958.3,0.56585207]
[1773000307838,0.27152641,1959.4,1958.3,0.56585207]
[1773000308036,0.27733738,1959.0,1958.1,0.57031718]
[1773000308237,0.27733738,1958.8,1957.9,0.56585207]
[1773000308440,0.27733738,1958.6,1957.3,0.56585207]
[1773000309346,0.27733738,1958.4,1957.3,0.57026392]
[1773000309541,6.95433738,1958.4,1957.3,0.57026392]
[1773000310038,0.28273249,1958.3,1957.3,0.57026392]
[1773000310241,0.00533358,1958.6,1957.3,0.57026392]
[1773000310444,0.28273249,1958.4,1957.3,0.57026392]
[1773000311147,0.28806607,1958.6,1957.5,0.56585207]
[1773000311343,0.00533358,1958.6,1957.5,0.56585207]
[1773000311552,0.00533358,1958.6,1957.7,0.56585207]
[1773000311947,0.28566473,1958.6,1957.7,0.56585207]
[1773000318949,0.28123547,1958.4,1957.7,0.56585207]
[1773000321054,0.28123547,1958.4,1957.4,0.56585207]
[1773000321662,0.24334576,1958.3,1957.4,0.56585207]
[1773000330264,0.28263815,1958.2,1957.4,0.56585207]
[1773000332160,0.28263815,1958.2,1957.3,0.00441185]
[1773000332359,0.28263815,1958.2,1957.3,0.57026392]
[1773000332759,0.27798652,1958.0,1957.3,0.57026392]
[1773000334365,0.27798652,1958.0,1957.0,0.55719493]
[1773000335360,0.27798652,1958.0,1957.0,0.56124186]
[1773000335967,0.26710357,1957.8,1957.0,0.56124186]
[1773000338070,0.26766522,1957.7,1957.0,0.56124186]
[1773000341873,0.26766522,1957.7,1957.0,0.00404693]
[1773000342074,0.26766522,1957.7,1957.0,0.56124186]
[1773000343672,0.27336284,1957.5,1957.0,0.56124186]
[1773000344977,0.27336284,1957.5,1956.9,0.55719493]
[1773000345478,2.08731245,1958.0,1956.9,0.55719493]
[1773000345778,0.27196461,1957.8,1956.9,0.55719493]
[1773000345978,0.27196461,1957.6,1956.9,0.56171244]
[1773000349075,0.28802135,1957.5,1956.9,0.56171244]
[1773000350980,0.28802135,1957.5,1955.8,0.55719493]
[1773000351382,0.28802135,1957.5,1956.0,0.55719493]
[1773000352182,0.28802135,1957.5,1956.0,0.56309812]
[1773000352382,0.55569838,1957.3,1956.0,0.56309812]
[1773000353471,0.55569838,1957.1,1956.0,0.56309812]
[1773000353675,0.56228117,1957.1,1956.0,0.56309812]
[1773000354281,0.55569838,1957.0,1956.0,0.56309812]
[1773000358991,7.23469838,1957.0,1956.0,0.56309812]
[1773000359190,0.55569838,1956.9,1956.0,0.56309812]
[1773000361389,0.55569838,1956.8,1956.0,0.56309812]
[1773000361690,0.55569838,1957.0,1956.0,0.56309812]
[1773000361893,0.55569838,1956.9,1956.0,0.56309812]
[1773000362290,0.55569838,1956.8,1956.0,0.56309812]
[1773000362490,0.55569838,1956.9,1956.0,0.56309812]
[1773000363193,0.59961278,1956.8,1956.0,0.56309812]
[1773000367590,0.59961278,1956.8,1956.3,0.59939962]
[1773000369594,0.00658279,1957.1,1956.7,0.59939962]
[1773000371297,0.54729697,1957.2,1956.7,0.59939962]
[1773000371997,0.54729697,1957.3,1956.7,0.59939962]
[1773000372499,0.55130549,1957.3,1956.7,0.59939962]
[1773000384703,0.54729697,1957.7,1956.7,0.59939962]
[1773000385701,0.55292443,1957.7,1956.7,0.59939962]
[1773000388000,0.54729697,1957.5,1956.7,0.59939962]
[1773000391601,0.54729697,1957.3,1956.7,0.59939962]
[1773000392506,0.54729697,1957.1,1956.1,0.59939962]
[1773000392705,0.54729697,1956.9,1956.2,0.59939962]
[1773000392903,2.08777615,1957.2,1956.1,2.08777615]
[1773000392904,0.5693695,1957.0,1956.4,0.58961891]
[1773000397923,0.5693695,1957.1,1956.4,0.58961891]
[1773000398223,0.00562746,1957.7,1956.1,2.08777615]
[1773000398224,0.5693695,1957.3,1956.7,0.58961891]
[1773000399320,0.5693695,1957.1,1956.7,0.58961891]
[1773000400824,9.33714565,1957.4,1956.7,0.58961891]
[1773000401521,0.5693695,1957.3,1956.7,0.58961891]
[1773000405618,0.5693695,1957.5,1956.8,0.58961891]
[1773000408428,0.5693695,1957.4,1956.8,0.58961891]
[1773000412826,0.57499696,1957.7,1956.8,0.58961891]
[1773000413233,0.5693695,1957.6,1956.8,0.58961891]
[1773000414825,0.5693695,1957.5,1956.8,0.58961891]
[1773000415631,6.68,1957.5,1956.5,0.58961891]
[1773000415934,7.2493695,1957.5,1956.5,0.58961891]
[1773000416134,0.5693695,1957.5,1956.5,0.58961891]
[1773000416336,0.5693695,1957.4,1956.5,0.58961891]
[1773000435642,0.56276042,1957.6,1956.5,0.58961891]
[1773000438550,0.00562746,1957.7,1956.7,0.59098294]
[1773000438766,0.00562746,1957.7,1957.1,0.59098294]
[1773000441150,0.56276042,1957.9,1957.1,0.59098294]
[1773000441459,0.56276042,1958.4,1957.3,0.59098294]
[1773000441657,0.56276042,1958.4,1957.2,2.08747151]
[1773000441658,0.56276042,1958.4,1957.6,0.59098294]
[1773000442151,0.56816128,1958.4,1957.6,0.59675596]
[1773000443355,0.56276042,1959.1,1958.1,0.59098294]
[1773000444154,0.56719876,1959.1,1958.1,0.59098294]
[1773000447461,0.00923779,1959.1,1958.6,0.59098294]
[1773000448450,0.29802858,1959.2,1958.6,0.59098294]
[1773000448654,0.29802858,1959.2,1958.4,0.59098294]
[1773000449451,0.30178766,1959.2,1958.4,0.59098294]
[1773000450056,0.30971519,1959.1,1958.0,0.59098294]
[1773000454965,2.09123059,1959.2,1958.5,0.58991065]
[1773000454966,0.00375908,1959.2,1958.5,0.58991065]
[1773000455267,0.29116718,1959.2,1958.2,0.58991065]
[1773000458971,0.20042121,1959.1,1958.2,0.58991065]
[1773000460874,0.19977431,1958.9,1957.8,0.58991065]
[1773000463478,0.20049869,1958.8,1957.8,0.58991065]
[1773000471182,0.19917661,1958.3,1957.6,0.59568367]
[1773000480985,2.29592606,1958.2,1957.6,0.59568367]
[1773000481485,0.21032557,1958.4,1957.7,0.58991065]
[1773000481688,0.21032557,1958.5,1957.7,0.58991065]
[1773000482487,0.21174298,1958.8,1958.1,0.58991065]
[1773000482788,2.29763038,1958.5,1958.1,0.58991065]
[1773000483191,0.21202989,1958.5,1958.1,0.58991065]
[1773000486391,0.2045312,1958.6,1958.1,0.58991065]
[1773000486989,0.2045312,1958.7,1958.1,0.58991065]
[1773000487192,0.2045312,1958.3,1957.9,0.54463888]
[1773000489194,0.20382949,1958.5,1957.9,0.54463888]
[1773000502502,0.20503212,1958.3,1957.9,0.54463888]
[1773000504401,0.20503212,1958.3,1957.8,0.52516494]
[1773000504606,0.54310371,1958.1,1957.6,0.5504119]
[1773000514616,0.54598101,1957.9,1957.6,0.5504119]
[1773000514815,0.54598101,1957.8,1957.5,0.00896964]
[1773000515715,0.5504105,1957.8,1957.5,0.01486992]
[1773000515912,0.54598101,1957.7,1957.4,0.55873269]
[1773000516114,0.54598101,1957.7,1956.9,2.08560049]
[1773000516115,0.54598101,1957.7,1957.0,0.55873269]
[1773000516810,0.54598101,1957.7,1957.0,0.56284438]
[1773000517710,7.22898101,1957.6,1957.0,0.56284438]
[1773000518818,0.54598101,1957.6,1957.0,0.56284438]
[1773000519018,7.22898101,1957.6,1957.0,0.56284438]
[1773000519618,0.54598101,1957.5,1957.0,0.56284438]
[1773000520518,6.683,1957.5,1957.0,0.56284438]
[1773000521017,7.22898101,1957.5,1957.0,0.56284438]
[1773000521617,0.54598101,1957.4,1957.0,0.56284438]
[1773000523020,7.22998101,1957.5,1957.0,0.56284438]
[1773000526325,0.54598101,1957.4,1957.0,0.56284438]
[1773000527828,0.54598101,1957.7,1957.0,0.56284438]
[1773000528026,7.22998101,1957.6,1957.0,0.56284438]
[1773000528625,0.54598101,1957.5,1957.0,0.56284438]
[1773000530724,0.00442949,1957.8,1957.2,2.08560049]
[1773000530927,0.00442949,1957.8,1957.5,0.55873269]
[1773000533230,0.54598101,1958.2,1957.5,0.55873269]
[1773000533431,7.22998101,1958.1,1957.5,0.55873269]
[1773000534330,7.23428261,1958.1,1957.5,0.55873269]
[1773000534827,0.0043016,1958.1,1957.5,0.55873269]
[1773000536135,0.54598101,1958.3,1957.5,0.55873269]
[1773000537139,0.55043804,1958.3,1957.5,0.55873269]
[1773000540237,7.22898101,1958.2,1957.5,0.55873269]
[1773000540435,0.54598101,1958.1,1957.5,0.55873269]
[1773000549447,0.00445703,1958.3,1957.5,0.55873269]
[1773000549448,7.27123324,1958.3,1957.5,0.55873269]
[1773000549648,0.58377621,1958.2,1957.5,0.55873269]
[1773000556254,0.00445703,1958.3,1957.6,0.59367798]
[1773000556761,0.58823324,1958.3,1957.6,0.59367798]
[1773000558062,0.00445703,1958.3,1957.6,0.59367798]
[1773000560262,0.58823324,1958.3,1957.6,0.59367798]
[1773000560862,0.58377621,1958.1,1957.3,0.59367798]
[1773000561164,0.58377621,1958.0,1957.3,0.59367798]
[1773000572367,0.58377621,1957.8,1957.0,0.59778967]
[1773000572566,0.58377621,1957.6,1957.0,0.59778967]
[1773000576065,0.58377621,1957.6,1956.7,0.57675636]
[1773000576266,7.2507568,1957.5,1956.7,0.57675636]
[1773000577070,7.2507568,1957.5,1956.7,0.58084032]
[1773000577467,0.5667568,1957.4,1956.7,0.58084032]
[1773000578472,0.5667568,1957.7,1956.7,0.58084032]
[1773000578673,0.5667568,1957.6,1956.7,0.58084032]
[1773000583867,0.5667568,1957.2,1956.7,0.58084032]
[1773000584374,2.08587668,1957.8,1956.7,0.58084032]
[1773000584375,0.5667568,1957.6,1956.7,0.58084032]
[1773000585576,0.5667568,1957.7,1956.7,0.58084032]
[1773000589078,0.5667568,1957.7,1956.8,0.57675636]
[1773000593678,0.5667568,1957.6,1956.9,0.57675636]
[1773000597478,2.08706114,1957.7,1956.7,0.00408396]
[1773000597479,0.5667568,1957.1,1956.7,0.00408396]
[1773000597682,6.685,1957.8,1956.7,0.00408396]
[1773000597683,0.5667568,1957.6,1957.0,0.57675636]
[1773000598777,0.5667568,1957.3,1956.7,0.58084032]
[1773000599476,0.5667568,1957.1,1956.7,0.58084032]
[1773000599682,0.5667568,1957.1,1956.7,0.00408396]
[1773000601584,0.5667568,1957.1,1956.7,0.58084032]
[1773000602283,0.5667568,1957.2,1956.7,0.58084032]
[1773000602485,2.08706114,1957.7,1956.9,0.57675636]
[1773000602486,0.5667568,1957.6,1956.9,0.57675636]
[1773000602880,0.54921157,1957.2,1956.7,0.57133758]
[1773000603081,8.77206114,1957.7,1956.7,0.57133758]
[1773000603082,0.54921157,1957.6,1956.7,0.57133758]
[1773000603881,0.54921157,1957.4,1956.7,0.57133758]
[1773000604184,0.54921157,1957.2,1956.7,0.57133758]
[1773000607387,0.54921157,1957.2,1956.7,0.00408396]
[1773000607690,0.56192168,1957.0,1956.3,0.56732995]
[1773000608586,0.56192168,1957.0,1956.3,0.57203773]
[1773000613287,0.56192168,1956.7,1956.3,0.00470778]
[1773000613484,0.56676997,1956.7,1956.3,0.57203773]
[1773000616092,0.56676997,1956.7,1956.3,0.00470778]
[1773000616689,0.56676997,1956.7,1956.3,0.57203773]
[1773000617787,0.56676997,1956.7,1956.3,0.00470778]
[1773000617987,0.56192168,1956.4,1956.0,0.56732995]
[1773000618387,0.56192168,1956.4,1955.9,0.56732995]
[1773000619090,0.56192168,1956.4,1955.9,0.00499526]
[1773000619287,0.56673756,1956.2,1955.6,0.55445238]
[1773000619792,0.56673756,1956.2,1955.7,0.55445238]
[1773000620392,0.56673756,1956.2,1955.7,0.55819883]
[1773000620594,0.56673756,1956.2,1955.7,0.00374645]
[1773000620994,0.56673756,1955.9,1955.3,0.55445238]
[1773000621894,0.56673756,1955.4,1954.9,0.55445238]
[1773000622188,0.56673756,1955.3,1954.9,0.55445238]
[1773000622493,0.2556,1956.3,1954.9,0.55445238]
[1773000622494,0.56673756,1956.0,1955.2,0.55445238]
[1773000622995,0.56673756,1955.8,1955.2,0.55924226]
[1773000625099,0.57060836,1956.0,1955.5,0.55445238]
[1773000625991,0.57060836,1956.0,1955.4,0.55445238]
[1773000627100,0.56673756,1955.8,1955.4,0.55445238]
[1773000627294,0.0038708,1956.0,1955.4,0.55445238]
[1773000627499,0.57060836,1956.0,1955.4,0.55445238]
[1773000627904,0.0038708,1956.0,1955.6,0.55445238]
[1773000628303,0.56673756,1956.2,1955.6,0.55445238]
[1773000629302,0.57287152,1956.2,1955.6,0.55445238]
[1773000631812,0.00613396,1956.2,1955.6,0.55445238]
[1773000632105,0.56673756,1956.7,1955.8,0.55445238]
[1773000632908,0.57290585,1956.7,1955.8,0.55445238]
[1773000633308,0.57290585,1956.7,1955.9,0.58819099]
[1773000634106,0.56874129,1956.9,1955.9,0.58819099]
[1773000635008,0.57339051,1956.9,1955.9,0.58819099]
[1773000636610,0.57339051,1956.9,1956.1,0.58819099]
[1773000637508,0.57339051,1956.9,1955.3,6.686]
[1773000637509,0.56874129,1956.6,1955.3,6.686]
[1773000637902,0.56874129,1956.6,1955.4,0.58819099]
[1773000640911,0.56874129,1956.5,1955.4,0.58819099]
[1773000650317,0.56874129,1956.4,1955.4,0.58819099]
[1773000651617,0.56874129,1956.3,1955.6,0.58819099]
[1773000652517,0.56874129,1956.1,1955.6,0.58819099]
[1773000652722,0.56874129,1955.9,1955.3,0.58819099]
[1773000659126,0.56874129,1956.2,1955.3,0.58819099]
[1773000663030,0.59320887,1956.1,1955.3,0.58819099]
[1773000668735,0.5643184,1955.9,1955.2,0.56258708]
[1773000669031,0.5643184,1955.9,1955.2,0.00478988]
[1773000670129,0.5643184,1955.9,1955.2,0.56258708]
[1773000670334,0.5643184,1956.2,1955.2,0.56258708]
[1773000671925,0.5643184,1956.8,1955.2,0.56258708]
[1773000672130,0.5643184,1956.8,1955.4,0.5577972]
[1773000672535,0.5643184,1956.8,1955.6,0.5577972]
[1773000674835,0.5643184,1956.8,1955.8,0.5577972]
[1773000689954,0.5643184,1956.6,1955.8,0.5577972]
[1773000695253,0.54449935,1956.4,1955.8,0.5577972]
[1773000695445,0.54449935,1956.8,1955.8,0.5577972]
[1773000695651,0.54449935,1956.7,1955.8,0.5577972]
[1773000695853,0.54449935,1956.5,1955.8,0.5577972]
[1773000696552,0.54449935,1956.5,1955.4,0.58169527]
[1773000697154,0.54449935,1956.3,1955.4,0.58169527]
[1773000706867,0.54449935,1956.8,1955.6,0.58169527]
[1773000712468,0.54449935,1956.6,1955.6,0.58169527]
[1773000713970,0.54449935,1956.4,1955.6,0.58169527]
[1773000716575,2.09347612,1956.9,1955.8,0.58169527]
[1773000716576,0.54449935,1956.8,1955.8,0.58169527]
[1773000717573,0.54449935,1956.7,1956.0,0.58169527]
[1773000720276,0.54914857,1956.9,1956.4,0.58169527]
[1773000721975,10.0,1957.0,1956.7,0.58169527]
[1773000722479,10.54449935,1957.0,1956.7,0.58169527]
[1773000723078,10.54859239,1957.0,1956.7,0.58784116]
[1773000724178,0.54449343,1956.9,1956.7,0.58784116]
[1773000724570,10.54858647,1957.0,1956.7,0.58784116]
[1773000726582,0.54510778,1956.9,1956.7,0.00614589]
[1773000726776,0.54510778,1956.9,1956.2,0.57096174]
[1773000727176,0.54510778,1956.6,1955.8,0.57096174]
[1773000727675,0.54510778,1956.6,1955.8,0.57545329]
[1773000727875,0.54510778,1956.6,1956.0,0.57096174]
[1773000741194,0.54510778,1956.7,1956.0,0.57096174]
[1773000741988,10.00409304,1957.0,1956.6,0.57096174]
[1773000742189,10.54920082,1957.0,1956.6,0.57096174]
[1773000742591,0.54510778,1956.9,1956.2,0.57096174]
[1773000743091,10.00409304,1957.0,1956.2,0.57096174]
[1773000743394,0.54510778,1956.9,1956.4,0.57096174]
[1773000750196,6.36418342,1957.0,1956.8,0.35156228]
[1773000750396,4.15085835,1957.0,1956.8,0.35156228]
[1773000750596,4.13264636,1957.0,1956.8,0.35156228]
[1773000753193,4.73545289,1957.0,1956.7,2.08879456]
[1773000754004,4.13264636,1957.0,1956.7,2.08879456]
[1773000754406,0.60280653,1957.3,1956.7,2.08879456]
[1773000754904,0.60280653,1957.7,1956.9,2.08879456]
[1773000755412,0.60280653,1957.7,1956.7,49.57679456]
[1773000755698,0.60851161,1957.7,1956.7,49.57679456]
[1773000756102,0.60851161,1957.7,1957.2,2.08879456]
[1773000756404,0.60247912,1957.6,1956.8,0.00212683]
[1773000757503,0.60247912,1957.6,1956.9,0.00172095]
[1773000759909,0.60247912,1957.6,1956.8,0.00574198]
[1773000762806,2.08879456,1957.5,1956.8,0.00574198]
[1773000763001,0.60072491,1957.4,1956.8,0.00574198]
[1773000764810,0.6008946,1957.1,1956.8,0.00574198]
[1773000765010,0.6008946,1957.1,1956.7,6.688]
[1773000765810,0.60102918,1957.3,1956.7,6.688]
[1773000766010,0.60102918,1957.3,1956.7,8.78263356]
[1773000769010,0.60102918,1957.3,1956.8,0.00236537]
[1773000771112,0.60102918,1957.3,1956.7,6.69620437]
[1773000778823,0.60102918,1957.3,1956.8,0.00121336]
[1773000780624,0.60102918,1957.3,1956.7,6.69474035]
[1773000787537,0.60102918,1957.3,1956.7,6.693839]
[1773000804452,0.60102918,1957.3,1956.7,0.005839]
[1773000804758,0.60102918,1957.3,1956.4,6.894]
[1773000804952,0.6045493,1957.1,1956.0,6.897]
[1773000805955,0.6045493,1957.1,1956.0,6.90250152]
[1773000807156,0.6045493,1957.1,1956.1,0.02719746]
[1773000809557,0.6045493,1957.1,1956.0,0.04600492]
[1773000811058,0.2555,1957.0,1956.0,0.04600492]
[1773000812161,0.57772539,1956.9,1956.0,0.04600492]
[1773000813956,2.66509946,1956.9,1956.0,0.00550152]
[1773000814163,0.5770821,1956.8,1955.7,0.04616038]
[1773000815163,0.5770821,1956.8,1955.7,0.05137947]
[1773000818968,0.5770821,1956.8,1956.0,0.08490058]
[1773000823275,0.5770821,1956.8,1955.9,6.946]
[1773000823475,0.5770821,1956.8,1955.9,7.03341685]
[1773000824173,0.5770821,1956.8,1956.0,0.08741685]
[1773000826076,0.5770821,1956.8,1955.9,6.946]
[1773000827576,0.5770821,1956.8,1955.9,7.03347777]
[1773000827775,0.5770821,1956.8,1956.0,0.08747777]
[1773000830279,0.5770821,1956.8,1955.9,7.02186898]
[1773000830578,0.5770821,1956.8,1955.9,6.946]
[1773000831382,0.5770821,1956.8,1955.8,0.07586898]
[1773000835886,0.5770821,1956.8,1955.7,0.08198379]
[1773000836485,0.56988639,1956.6,1955.7,0.08198379]
[1773000839690,0.56988639,1956.6,1955.7,2.17143586]
[1773000840685,0.56988639,1956.6,1955.7,2.08945207]
[1773000840885,0.56988639,1955.6,1953.9,0.58928774]
[1773000841092,0.56988639,1954.8,1953.8,0.84922987]
[1773000841290,0.56988639,1954.8,1953.9,0.58928774]
[1773000841791,0.57467151,1954.8,1954.3,0.58928774]
[1773000841990,0.57467151,1954.8,1954.5,0.58928774]
[1773000842192,0.56892943,1954.8,1954.4,2.67873981]
[1773000842592,0.56892943,1954.8,1954.5,0.58928774]
[1773000842986,0.56892943,1954.8,1954.3,0.57725444]
[1773000844193,0.56892943,1954.8,1954.0,0.57725444]
[1773000844394,0.56892943,1954.8,1954.2,0.57725444]
[1773000846193,0.56892943,1954.8,1954.4,0.58731906]
[1773000847395,0.56892943,1954.8,1954.3,0.58731906]
[1773000847894,0.56892943,1954.8,1954.1,0.58731906]
[1773000849292,0.56892943,1954.8,1954.3,0.58731906]
[1773000849794,0.56892943,1954.8,1954.2,0.58731906]
[1773000850187,0.56892943,1954.8,1954.3,0.58731906]
[1773000851196,0.56892943,1954.8,1954.2,0.58731906]
[1773000853299,0.56892943,1954.8,1954.1,0.58731906]
[1773000854396,2.6583815,1954.8,1953.9,0.59170927]
[1773000854601,0.55677995,1954.7,1953.9,0.59170927]
[1773000856102,0.55677995,1954.6,1954.1,0.58731906]
[1773000856304,0.55677995,1954.6,1954.2,2.67677113]
[1773000856502,0.55677995,1954.6,1954.2,0.58731906]
[1773000858205,0.55677995,1954.6,1953.9,0.59170927]
[1773000859304,0.55677995,1954.6,1954.1,0.58731906]
[1773000860208,0.55677995,1954.4,1953.9,0.00439021]
[1773000860505,0.55677995,1954.4,1953.9,0.59170927]
[1773000861008,0.55677995,1954.4,1953.9,0.00439021]
[1773000862802,0.55677995,1954.3,1953.8,0.27962008]
[1773000863204,0.55677995,1954.3,1953.5,0.58731906]
[1773000863908,0.55677995,1954.3,1953.8,0.58731906]
[1773000865603,0.55677995,1954.3,1953.7,2.67677113]
[1773000865907,0.55677995,1954.3,1953.8,0.58731906]
[1773000866508,0.55677995,1954.3,1953.7,0.58731906]
[1773000866705,0.55677995,1954.3,1953.8,0.58731906]
[1773000867518,0.55677995,1954.6,1954.2,0.58731906]
[1773000869813,0.55677995,1955.3,1954.4,0.58731906]
[1773000870112,0.55677995,1955.3,1954.8,0.58731906]
[1773000870910,0.56065474,1955.3,1954.8,0.58731906]
[1773000871608,0.56065474,1955.3,1954.6,0.58731906]
[1773000878012,0.56065474,1955.3,1954.1,0.5882783]
[1773000879319,0.59166165,1955.1,1954.1,0.5882783]
[1773000882723,0.59166165,1954.9,1953.9,0.5882783]
[1773000883024,3.14192086,1955.3,1953.5,0.00444712]
[1773000883025,0.59166165,1954.3,1953.5,0.00444712]
[1773000883316,0.00387479,1955.3,1953.5,0.59272542]
[1773000883317,0.59166165,1954.1,1953.5,0.59272542]
[1773000886929,0.59166165,1954.8,1953.5,0.59272542]
[1773000887123,0.59166165,1954.6,1953.5,0.59272542]
[1773000888324,0.84748165,1954.6,1953.5,0.00444712]
[1773000888530,0.59166165,1954.4,1953.5,0.59272542]
[1773000888919,6.691,1954.5,1953.5,0.59272542]
[1773000888920,0.59166165,1954.2,1953.5,0.00444712]
[1773000890622,0.59166165,1954.2,1953.5,0.59272542]
[1773000891824,0.25579,1954.8,1953.5,0.59272542]
[1773000892028,0.59166165,1954.6,1953.5,0.59272542]
[1773000892529,0.59166165,1954.4,1953.5,0.59272542]
[1773000895730,0.59166165,1954.4,1953.7,0.5882783]
[1773000896129,0.59166165,1954.1,1953.5,0.59272542]